Cogmind - Beta 13 @@@ ROGUE MODE // 2024.06.05 @ 12:34:17 Player: Barbarossa Result: Destroyed by G-34 Mercenary with Small Laser Performance ------------- Evolutions (0) 0 Regions Visited (1) 200 Robots Destroyed (18) 90 Value Destroyed (406) 406 Prototype IDs (0) 0 Alien Tech Used (0) 0 Bonus (0) 0 TOTAL SCORE: 696 Bonus ------- None Cogmind --------- Core Integrity 0/250 Matter 280/300 Energy 76/100 System Corruption 0% Temperature Cool (45) Movement Rolling (95) Ox1 Location -10/Materials Parts ------- > --- POWER (1) -------- (None) > --- PROPULSION (2) --- Wheel Wheel > --- UTILITY (2) ------ Large Storage Unit Signal Interpreter > --- WEAPON (2) ------- Small Laser Particle Gun > --- INVENTORY (15) --- Light Treads Light Treads Wheel Compact Wheel Compact Wheel Heat Sink Improved Heat Sink High-capacity Matter Pod (168) Light Cannon Light Cannon Peak State ------------ > --- POWER ------------ Light Ion Engine > --- PROPULSION ------- Aluminum Leg Aluminum Leg > --- UTILITY ---------- Medium Storage Unit Signal Interpreter > --- WEAPON ----------- Small Laser Small Laser > --- INVENTORY -------- Ion Engine Light Treads Light Treads Aluminum Leg Wheel Compact Wheel Heat Sink Small Laser Light Cannon Light Cannon [Rating: 8] Favorites ----------- Power Light Ion Engine Engine Light Ion Engine Propulsion Aluminum Leg Leg Aluminum Leg Wheel Wheel Utility Signal Interpreter Storage Medium Storage Unit Processor Signal Interpreter Weapon Small Laser Energy Gun Small Laser Ballistic Gun Light Assault Rifle Build | -11 -10 ------- Run | Yrd Mat Slots Evolved . | . . Power . | . . Propulsion . | . . Utility . | . . Weapon . | . . Parts Attached 16 | . 16 Power 2 | . 2 Engine 2 | . 2 Core . | . . Reactor . | . . Propulsion 6 | . 6 Treads . | . . Leg 2 | . 2 Wheel 4 | . 4 Hover . | . . Flight . | . . Utility 3 | . 3 Device . | . . Storage 2 | . 2 Processor 1 | . 1 Hackware . | . . Protection . | . . Artifact . | . . Weapon 5 | . 5 Energy Gun 5 | . 5 Energy Cannon . | . . Ballistic Gun . | . . Ballistic Cannon . | . . Launcher . | . . Special Weapon . | . . Impact Weapon . | . . Slashing Weapon . | . . Piercing Weapon . | . . Special Melee Weapon . | . . Unidentified Prototypes . | . . Parts Lost 6 | . 6 Power 2 | . 2 Propulsion 2 | . 2 Utility . | . . Weapon 2 | . 2 Highest Loss Streak 3 | . 3 To Critical Strikes . | . . Average Slot Usage (%) 94 | . 94 Engine 13 | . 13 Leg 14 | . 14 Wheel 12 | . 12 Storage 14 | . 14 Processor 11 | . 11 Energy Gun 26 | . 26 Ballistic Gun 1 | . 1 Naked Turns . | . . Heaviest Build 25 | 10 25 Greatest Support 20 | 20 20 Greatest Overweight (x) 2 | . 2 Average Overweight (x) . | . . Largest Inventory Capacity 15 | . 15 Average Capacity 11 | . 11 Most Carried 11 | . 11 Average Carried 8 | . 8 Final Capacity 15 | 8 15 Final Carried 10 | 6 10 Class Distribution -------------------- 100% | Mutant Dominant Class ---------------- Mutant | -10/Materials Resources | -11 -10 ----------- Run | Yrd Mat Matter Collected 547 | 200 347 Remotely . | . . Salvage Created 621 | . 621 Parts 38 | . 38 Haulers Intercepted . | . . Recyclers Shooed 2 | . 2 Parts Field Recycled . | . . Retrieved Matter . | . . Parts Self-Destructed . | . . Prevented . | . . Kills | -11 -10 ------- Run | Yrd Mat Combat Hostiles Destroyed 13 | . 13 Guns 13 | . 13 Classes Destroyed 4 | . 4 Worker 4 | . 4 Recycler 1 | . 1 Swarmer 3 | . 3 Grunt 10 | . 10 Best Kill Streak 4 | . 4 Combat Bots Only 4 | . 4 Max Kills in Single Turn 2 | . 2 Gunslinging . | . . Exploded . | . . Melee . | . . Uniques/NPCs Destroyed . | . . Combat | -11 -10 -------- Run | Yrd Mat Hostile Shots Fired 102 | . 102 Missed 15 | . 15 Damage Taken 1031 | . 1031 Core 250 | . 250 Absorbed by Shields . | . . Core Remaining (%) 100 | 100 . Volleys Fired 78 | . 78 Largest 2 | . 2 Hottest 105 | . 105 Shots Fired 152 | . 152 Gun 152 | . 152 Cannon . | . . Launcher . | . . Special . | . . Kinetic 7 | . 7 Thermal 145 | . 145 Explosive . | . . Electromagnetic . | . . Robot Hit Streak 8 | . 8 Robot Miss Streak 5 | . 5 Penetration Max . | . . Secondary Targets 3 | . 3 Max Gunslinging Chain 1 | . 1 Shots Hit Robots 82 | . 82 Core Hits 33 | . 33 Critical Kills . | . . Critical Parts Destroyed . | . . Critical Strikes . | . . Melee Attacks . | . . Impact . | . . Slashing . | . . Piercing . | . . Sneak Attacks . | . . Combat Hostiles . | . . Follow-up Attacks . | . . Damage Inflicted 936 | . 936 Guns 936 | . 936 Cannons . | . . Explosions . | . . Melee . | . . Ramming . | . . Kinetic 25 | . 25 Thermal 911 | . 911 Explosive . | . . Electromagnetic . | . . Impact . | . . Slashing . | . . Piercing . | . . Highest Corruption . | . . Average Corruption . | . . Corruption Purged . | . . Corruption Blocked . | . . Overload Shots . | . . Overflow Damage . | . . Projectiles . | . . Explosions . | . . Melee . | . . Knockbacks . | . . Impact . | . . Kinetic . | . . Secondary . | . . Self-Inflicted Damage . | . . Shots . | . . Rammed . | . . Targets Rammed . | . . Kicked . | . . Crushed . | . . Highest Temperature 369 | . 369 Average Temperature 121 | . 121 Received Heat Transfer 546 | . 546 Effects 3 | . 3 Interference 2 | . 2 Short Circuit 1 | . 1 Siege Activations . | . . Robots Corrupted . | . . Combat Hostiles . | . . Parts Fried . | . . Impact Corruptions . | . . Robots Melted . | . . Combat Hostiles . | . . Parts Melted 8 | . 8 Heat Transferred 2062 | . 2062 Parts Sabotaged . | . . Parts Stolen . | . . Parts Stripped . | . . Power Chain Reactions . | . . Alert | -11 -10 ------- Run | Yrd Mat Peak Influence 215 | . 215 Initial . | . . Average 130 | . 130 Maximum Alert Level 1 | . 1 Low Security (%) 76 | . 76 Level 1 23 | . 23 Level 2 . | . . Level 3 . | . . Level 4 . | . . Level 5 . | . . High Security . | . . Max Security . | . . Squads Dispatched 3 | . 3 Investigation . | . . Extermination . | . . Reinforcement 3 | . 3 Assault . | . . Garrison . | . . Intercept . | . . Searches Triggered . | . . Construction Impeded . | . . Haulers Reinforced . | . . Active Scanning Responses . | . . Cargo Convoy Interrupts . | . . Stealth | -11 -10 --------- Run | Yrd Mat Distress Signals 1 | . 1 Communications Jammed . | . . Distress Signals . | . . Times Spotted 33 | . 33 Peak Tracking Total 6 | . 6 Tactical Retreats . | . . Traps | -11 -10 ------- Run | Yrd Mat Traps Triggered . | . . Indirectly . | . . Trap Hack Attempts . | . . Triggered . | . . Disarmed . | . . Reprogrammed . | . . Reused . | . . Traps Extracted . | . . Installed . | . . Triggered . | . . Machines | -11 -10 ---------- Run | Yrd Mat Machines Disabled . | . . Max in Single Turn . | . . Machines Repaired . | . . Machines Dismantled . | . . Machines Sabotaged . | . . Overloaded Fab Kills . | . . Hacking | -11 -10 --------- Run | Yrd Mat Machines Accessed . | . . Terminals . | . . Fabricators . | . . Repair Stations . | . . Recycling Units . | . . Scanalyzers . | . . Garrison Access . | . . Total Hacks . | . . Successful . | . . Failed . | . . Catastrophic . | . . Database Lockouts . | . . Manual . | . . Terminals . | . . Fabricators . | . . Repair Stations . | . . Recycling Units . | . . Scanalyzers . | . . Garrison Access . | . . Terminal Hacks . | . . Fabricator Hacks . | . . Repair Station Hacks . | . . Recycling Unit Hacks . | . . Scanalyzer . | . . Garrison Access Hacks . | . . Unauthorized Hacks . | . . Terminals . | . . Fabricators . | . . Repair Stations . | . . Recycling Units . | . . Scanalyzers . | . . Garrison Access . | . . Data Cores Recovered . | . . Used . | . . Hacking Detections . | . . Full Trace Events . | . . Feedback Events . | . . Feedback Blocked . | . . Robot Schematics Acquired . | . . Robots Built . | . . Authchips . | . . Time . | . . Total Robot Build Rating . | . . Part Schematics Acquired . | . . Parts Built . | . . Authchips . | . . Time . | . . Total Part Build Rating . | . . Parts Repaired . | . . Time . | . . Parts Recycled . | . . Recycled Matter . | . . Retrieved Matter . | . . Retrieved Components . | . . Parts Scanalyzed . | . . Part Schematics Acquired . | . . Parts Damaged . | . . Bothacking | -11 -10 ------------ Run | Yrd Mat Used RIF Installer . | . . Robots Hacked . | . . Non-combat . | . . Combat . | . . Robot Hacks Applied . | . . Relay Couplers Released . | . . Fabnet Peak Effective % . | . . Robots Rewired . | . . Allies Hacked . | . . Hacks Repelled . | . . Allies | -11 -10 -------- Run | Yrd Mat Total Allies . | . . Largest Group . | . . Highest-Rated Group . | . . Highest-Rated Ally . | . . Total Orders . | . . Ally Attacks . | . . Total Damage . | . . Kills . | . . Allies Corrupted . | . . Allies Melted . | . . Intel | -11 -10 ------- Run | Yrd Mat Robot Analysis Total . | . . Derelict Logs Recovered . | . . Drone Launches . | . . Drone Recoveries . | . . Exploration | -11 -10 ------------- Run | Yrd Mat Turns Passed 495 | . 495 Spaces Moved 207 | 1 206 Core . | . . Treads . | . . Legs 69 | 1 68 Wheels 138 | . 138 Hover . | . . Flight . | . . Fastest Speed 80 | 120 80 Average Speed 100 | 120 100 Slowest Speed 190 | 120 190 Overloaded Moves . | . . Propulsion Burnouts . | . . Robots Hopped . | . . Cave-ins Triggered . | . . Exploration Rate (%) 16 | 2 31 Regions Visited 1 Branch Regions . Pre-discovered Areas . | . . Known Exits Taken . | . . Unknown Exits Taken 1 | 1 . Scrap Searched . | . . Spaces Dug . | . . Terrain Destroyed . | . . Melee . | . . Projectile . | . . AOE . | . . Terrain Rammed . | . . Walls Destroyed . | . . Machines Disabled . | . . Actions | -11 -10 --------- Run | Yrd Mat Total 346 | . 346 Wait 21 | . 21 Move 206 | . 206 Hop . | . . Pick Up 13 | . 13 Fast Attach 3 | . 3 Attach 4 | . 4 Detach . | . . Swap 9 | . 9 Drop 12 | . 12 Fire 78 | . 78 Melee . | . . Ram . | . . Kick . | . . Crush . | . . Escape Stasis . | . . Rewire . | . . Trap . | . . Miscellaneous . | . . Route ------- -11/Scrapyard -10/Materials (discovered 1 exit: [*Min]) History --------- Turn | Location | Event 1 | -11/Scrapyard | Discovered new exit (range 0) 1 | -11/Scrapyard | Entered Materials 195 | -10/Materials | Discovered new exit (range 10) 286 | -10/Materials | Lost 3 parts (1p1n1w) 324 | -10/Materials | Build established: Mutant 471 | -10/Materials | Core integrity fell below 50% 481 | -10/Materials | Core integrity fell below 20% 496 | -10/Materials | Destroyed by G-34 Mercenary with Small Laser Last Messages --------------- 00449_ K-01 Serf collects debris. 00470_ Heat Sink melted. 00470_ Ion Engine melted. 00470_ G-34 Mercenary destroyed. 00470_ Switching to secondary target: G-47 Trooper. 00471_ Lgt. Ion Engine destroyed. 00472_ K-01 Serf cleans the Electrolysis Chamber. 00473_ Wheel destroyed. 00474_ K-01 Serf collects debris. 00477_ Sml. Laser destroyed. 00478_ K-01 Serf cleans the Electrolysis Chamber. 00481_ G-47 Trooper destroyed. 00481_ K-01 Serf collects debris. 00486_ Acquired 47 matter. 00489_ K-01 Serf cleans the Electrolysis Chamber. 00492_ Acquired Imp. Heat Sink. Map ----- +----------------------------------------------------+ | ?????????????????????????????###########?????????? | | ?????????????????????????????# #?????????? | | ?????????????????????????????# % #?????????? | | ?????????????????????????????# #?????????? | | ?????????????????????????????# #?????????? | | ?????????????????????????????#! #?????????? | | ?????????????????????????????# #?????????? | | ?????????????????????????????# ! #?????????? | | ?????????????????????????????# #?????????? | | ??????????????????# ############+###+###### ? | | ??????????????????# | | ??????????????????+ ######????? | | ??????????????????# ^ =#?????????? | | ????????????????????############ """ #?????????? | | ?????????????????????# # """ ##????????? | | ?????????????????????# # """ #????????? | | ?????????????????????# + % #????????? | | ?????????????????????# # ########?? | | ?????????????????????# """ """ ### # #?? | | ?????????????????????# """ """ #?# # """ #?? | | ?????????????????????# """ """ #?# # "Y" #?? | | ?????????????????????# #?# %# ### | | ?????????????????????###########?# %/ ! + | | ??????????###??????????#########?# # ### | | ????????# #####= g !###% ###+####?? | | ??????? + k% k[@""" # !% % ##### | | ????????# #####=*""" a# [ % | | ??????????##+??????????#!m""" + [ ##### | | ???????????????????????# r # ###########???? | | ???????????????????????######### #?????????????? | | ??????????????????????????????# ????????????? | | ??????????????????????????????# ""#??????????? | | ??????????????????????????????# !!#??????????? | | ??????????????????????????????# < ""#??????????? | | ??????????????????????????????# !!#??????????? | | ??????????????????????????????# ""#??????????? | | ??????????????????????????????# "#??????????? | | ??????????????????????????????## ####??????????? | | ???????????????????????????????# #?????????????? | | ???????????????????????????????# ?????????????? | | ???????????????????????????????# ?????????????? | | ???????????????????????????????# ?????????????? | | ???????????????????????????????#####?????????????? | | ?????????????????????????????????????????????????? | | ?????????????????????????????????????????????????? | | ?????????????????????????????????????????????????? | | ?????????????????????????????????????????????????? | | ?????????????????????????????????????????????????? | | ?????????????????????????????????????????????????? | | ?????????????????????????????????????????????????? | +----------------------------------------------------+ Best States ------------- Heat Dissipation 25 Energy Generation 10 Energy Capacity 250 Matter Stores 300 Matter Capacity 300 Sight Range 16 Terrain Scan Density 10 Evasion (%) 55 Item Schematics ----------------- None Robot Schematics ------------------ None Fabricated ------------ Nothing Alien Tech Used ----------------- None Achievements -------------- None Challenges ------------ None Game ------ Seed ArmageddonGravitonMediator Manual? 0 Play Time 00:07:48 Cumulative 206.4 hours Start 2024.06.05 @ 12:30:20 End 2024.06.05 @ 12:34:17 Sessions 1 Manual Loads 0 Difficulty Rogue Special Mode None Game No. 375 Rogue 375 Adventurer 0 Explorer 0 Win Type - Total 0 Types 0/0/0/0/0/0/0/0/0 Lore% 45 Gallery% 56 Achievement% 39 Wizard Run 0 Options --------- Layout 1 ASCII 0 Keyboard 0 Movement Mouse Keybinds 0 Fullscreen 1 Font 24/Smallcaps Map View 50x40 Zoom Use 0% Tactical HUD 1 Map Filters NONE Filters NONE Steam 1 RUN: 7aae1025-cfc3-414d-80c7-f35b5b5ad1bf